bitfinex-derivatives/quotes_ETHF0:USTF0_20250322
["timestamp","ask_amount","ask_price","bid_price","bid_amount"]
[1742627996440,2.38516,1988.9,1988.8,2.32371]
[1742628002444,1.3792,1988.9,1988.8,2.32371]
[1742628004145,2.38516,1988.9,1988.8,2.32371]
[1742628004548,1.3792,1988.9,1988.8,2.32371]
[1742628004746,2.38516,1988.9,1988.8,2.32371]
[1742628005854,1.3792,1988.9,1988.8,2.32371]
[1742628012659,2.38516,1988.9,1988.8,2.32371]
[1742628014661,1.3792,1988.9,1988.8,2.32371]
[1742628015466,1.3792,1988.9,1988.7,0.00753882]
[1742628015763,5.50711,1988.8,1988.7,0.00753882]
[1742628016065,5.50711,1988.8,1988.7,1.29203882]
[1742628016364,6.91051,1988.8,1988.7,2.29809882]
[1742628017256,4.6112,1988.8,1988.7,2.29809882]
[1742628017563,3.2078,1988.8,1988.7,2.29809882]
[1742628017765,4.21381,1988.8,1988.7,2.29809882]
[1742628017957,3.2078,1988.8,1988.7,2.29809882]
[1742628018357,4.6066,1988.8,1988.7,2.29809882]
[1742628018559,5.61261,1988.8,1988.7,2.29809882]
[1742628019163,4.6066,1988.8,1988.7,2.29809882]
[1742628020065,5.61261,1988.8,1988.7,2.29809882]
[1742628020261,4.6066,1988.8,1988.7,2.29809882]
[1742628020764,5.61261,1988.8,1988.7,2.29809882]
[1742628021166,1.3988,1988.8,1988.7,2.29809882]
[1742628024058,2.40481,1988.8,1988.7,2.29809882]
[1742628025667,1.3988,1988.8,1988.7,2.29809882]
[1742628027867,4.55703882,1989.0,1988.9,1.00596]
[1742628028072,5.93493882,1989.0,1988.9,1.00596]
[1742628028463,5.93493882,1989.0,1988.9,2.36366]
[1742628029963,6.94084882,1989.0,1988.9,1.3577]
[1742628031167,6.94084882,1989.0,1988.9,2.36366]
[1742628034867,3.73304882,1989.0,1988.9,1.3577]
[1742628035175,6.94084882,1989.0,1988.9,1.3577]
[1742628036277,6.94084882,1989.0,1988.9,2.36366]
[1742628039375,6.94084882,1989.0,1988.9,1.3577]
[1742628039573,1.00601,1988.8,1988.7,1.01356882]
[1742628039769,1.00601,1988.8,1988.7,0.00753882]
[1742628040175,1.65501,1988.8,1988.7,0.00753882]
[1742628040979,1.65501,1988.8,1988.7,1.28193882]
[1742628042680,4.86281,1988.8,1988.7,0.00753882]
[1742628043174,6.22951,1988.8,1988.7,0.00753882]
[1742628043677,7.1502383,1988.8,1988.7,0.00753882]
[1742628046985,6.22951,1988.8,1988.7,0.00753882]
[1742628047383,6.22951,1988.8,1988.7,1.29113882]
[1742628061385,4.5745,1988.8,1988.7,2.29719882]
[1742628061890,5.58051,1988.8,1988.7,2.29719882]
[1742628062695,5.58051,1988.8,1988.7,2.99429882]
[1742628063795,2.37271,1988.8,1988.7,2.99429882]
[1742628064296,5.58051,1988.8,1988.7,2.99429882]
[1742628064783,2.37271,1988.8,1988.7,2.99429882]
[1742628066290,5.58051,1988.8,1988.7,2.99429882]
[1742628066492,2.37271,1988.8,1988.7,2.99429882]
[1742628066888,5.58051,1988.8,1988.7,2.99429882]
[1742628069490,2.37271,1988.8,1988.7,2.99429882]
[1742628070089,5.58051,1988.8,1988.7,1.98823882]
[1742628071089,6.22461,1988.8,1988.7,2.99429882]
[1742628072295,6.22461,1988.8,1988.7,1.98823882]
[1742628073791,6.22461,1988.8,1988.7,2.99429882]
[1742628074100,6.22461,1988.8,1988.7,1.98823882]
[1742628078003,6.22461,1988.8,1988.7,1.29113882]
[1742628078206,7.01075107,1988.8,1988.7,1.29113882]
[1742628078707,7.93167094,1988.8,1988.7,1.29113882]
[1742628082298,11.08467094,1988.8,1988.7,1.29113882]
[1742628085011,11.08467094,1988.8,1988.7,0.00753882]
[1742628085207,1.00611,1988.6,1988.5,1.2719]
[1742628085408,4.21391,1988.6,1988.5,1.2719]
[1742628085711,8.28782987,1988.6,1988.5,1.2719]
[1742628085905,10.26952987,1988.6,1988.5,1.2719]
[1742628086604,11.05530788,1988.6,1988.5,1.2719]
[1742628088615,10.26952987,1988.6,1988.5,1.2719]
[1742628089416,11.0549723,1988.6,1988.5,1.2719]
[1742628090713,1.00631,1988.2,1988.1,1.65223]
[1742628091804,1.00631,1988.2,1988.1,0.6459]
[1742628092015,2.40271,1988.2,1988.1,1.9648]
[1742628092607,2.40271,1988.2,1988.1,2.97116]
[1742628094817,2.40271,1988.2,1988.1,1.9648]
[1742628095318,2.40271,1988.2,1988.1,2.97116]
[1742628097920,3.2078,1988.3,1988.1,2.97116]
[1742628097921,4.21408,1988.3,1988.2,1.00631]
[1742628098219,5.59868,1988.3,1988.2,3.12321]
[1742628098615,3.2078,1988.3,1988.2,3.12321]
[1742628099621,1.00624,1988.4,1988.3,1.00626]
[1742628099820,1.00624,1988.4,1988.3,2.40806]
[1742628100217,2.31774,1988.4,1988.3,2.40806]
[1742628101617,3.2078,1988.5,1988.4,1.00621]
[1742628101924,3.2078,1988.5,1988.4,6.24531]
[1742628104828,4.2139,1988.7,1988.6,1.00611]
[1742628105230,1.00611,1988.6,1988.5,2.0715]
[1742628105528,1.00616,1988.5,1988.4,1.68851]
[1742628106028,5.53056,1988.5,1988.4,0.6823]
[1742628106223,1.00626,1988.3,1988.2,1.66559]
[1742628106424,1.00626,1988.3,1988.2,5.46649]
[1742628107120,2.32285,1988.4,1988.3,1.00626]
[1742628108421,2.51579,1988.2,1987.6,3.2078]
[1742628108729,6.39883,1988.1,1987.8,1.00651]
[1742628108921,8.43573,1988.1,1987.8,1.00651]
[1742628109122,1.00651,1987.8,1987.7,1.71213]
[1742628110030,2.33811,1987.8,1987.7,1.71213]
[1742628110832,1.01403882,1987.9,1987.8,1.00651]
[1742628111623,1.00651,1987.8,1987.7,4.89212]
[1742628111824,2.34001,1987.8,1987.7,4.89212]
[1742628113525,1.3335,1987.8,1987.7,4.89212]
[1742628115334,2.34001,1987.8,1987.7,4.89212]
[1742628115727,1.3335,1987.8,1987.7,4.89212]
[1742628116131,0.00753882,1987.9,1987.8,1.00651]
[1742628116527,0.00753882,1987.9,1987.8,3.50651]
[1742628116731,3.2078,1988.1,1988.0,1.00641]
[1742628117332,3.2078,1988.1,1988.0,2.30891]
[1742628118237,2.38644882,1988.2,1988.1,1.00636]
[1742628118537,2.38644882,1988.2,1987.9,3.18553882]
[1742628118538,0.00753882,1988.2,1987.9,3.18553882]
[1742628118738,0.00753882,1988.2,1988.0,1.00641]
[1742628118739,1.68959,1988.1,1988.0,1.00641]
[1742628118941,1.00639,1988.1,1988.0,1.68191]
[1742628124155,1.00639,1988.1,1988.0,3.03221]
[1742628125351,1.00641,1988.0,1987.9,0.00753882]
[1742628125554,4.86651,1988.0,1987.9,0.00753882]
[1742628131158,4.86651,1988.0,1987.9,1.01399882]
[1742628131456,1.65871,1988.0,1987.9,2.37509882]
[1742628134555,2.33471,1988.0,1987.9,2.37509882]
[1742628135156,2.33471,1988.0,1987.9,1.36863882]
[1742628135359,5.54251,1988.0,1987.9,0.00753882]
[1742628138967,5.54251,1988.0,1987.9,1.38873882]
[1742628140964,5.54251,1988.0,1987.9,2.39519882]
[1742628141165,5.54251,1988.0,1987.9,1.38873882]
[1742628149468,5.54251,1988.0,1987.9,0.00753882]
[1742628150970,5.54251,1988.0,1987.9,1.32553882]
[1742628155174,6.4633801,1988.0,1987.9,1.32553882]
[1742628155376,7.24971233,1988.0,1987.9,1.32553882]
[1742628157680,6.4633801,1988.0,1987.9,1.32553882]
[1742628158774,5.4569701,1988.0,1987.9,1.32553882]
[1742628159082,6.4633801,1988.0,1987.9,1.32553882]
[1742628163887,4.1286701,1988.0,1987.9,3.03849882]
[1742628164182,3.2078,1988.0,1987.9,3.03849882]
[1742628164383,4.21421,1988.0,1987.9,3.03849882]
[1742628164890,3.2078,1988.0,1987.9,3.03849882]
[1742628165391,3.2078,1988.0,1987.9,3.70029882]
[1742628166779,4.21421,1988.0,1987.9,3.70029882]
[1742628169679,3.2078,1988.0,1987.9,3.70029882]
[1742628170779,4.6075,1988.0,1987.9,3.70029882]
[1742628171785,5.61391,1988.0,1987.9,3.70029882]
[1742628172893,2.40611,1988.0,1987.9,3.70029882]
[1742628177586,2.40611,1988.0,1987.9,1.32553882]
[1742628178091,3.19209682,1988.0,1987.9,1.32553882]
[1742628178299,3.19209682,1988.0,1987.9,0.00753882]
[1742628178796,4.1127339,1988.0,1987.9,0.00753882]
[1742628180699,3.32674708,1988.0,1987.9,0.00753882]
[1742628180891,3.32674708,1988.0,1987.9,2.36779882]
[1742628181090,3.32674708,1988.0,1987.9,1.36133882]
[1742628181291,2.40611,1988.0,1987.9,1.36133882]
[1742628183095,2.40611,1988.0,1987.9,2.36779882]
[1742628183403,2.40611,1988.0,1987.9,1.36133882]
[1742628186910,5.61391,1988.0,1987.9,1.36133882]
[1742628188308,6.5343944,1988.0,1987.9,1.36133882]
[1742628189208,7.32024092,1988.0,1987.9,1.36133882]
[1742628192212,4.11244092,1988.0,1987.9,1.36133882]
[1742628192913,7.32024092,1988.0,1987.9,1.36133882]
[1742628193608,8.82990092,1988.0,1987.6,4.5281]
[1742628193809,1.00655,1987.8,1987.7,2.38395]
[1742628194106,1.00655,1987.8,1987.7,1.00655]
[1742628194305,1.65935,1987.8,1987.7,1.00655]
[1742628197604,1.00657,1987.7,1987.6,5.5347]
[1742628197814,2.31567,1987.7,1987.6,5.5347]
[1742628199919,2.31567,1987.7,1987.6,4.5281]
[1742628200217,2.31567,1987.7,1987.6,5.53472]
[1742628202516,2.31567,1987.7,1987.6,2.36972]
[1742628202716,2.31567,1987.7,1987.6,1.3631]
[1742628202918,2.31567,1987.7,1987.6,2.36972]
[1742628204320,2.31567,1987.7,1987.6,3.65392]
[1742628204821,2.31567,1987.7,1987.6,2.6473]
[1742628207515,2.31567,1987.7,1987.6,3.65392]
[1742628207716,2.31567,1987.7,1987.6,2.6473]
[1742628211823,2.31567,1987.7,1987.6,1.9705]
[1742628214721,2.31567,1987.7,1987.6,1.2842]
[1742628218424,1.00667,1987.5,1987.4,0.6594]
[1742628218615,4.21447,1987.5,1987.4,0.6594]
[1742628218819,1.00672,1987.4,1987.3,1.69705]
[1742628219729,2.41942,1987.4,1987.3,3.01585]
[1742628223221,2.41942,1987.4,1987.3,2.32555]
[1742628223416,2.41942,1987.4,1987.3,1.3188]
[1742628230129,2.41942,1987.4,1987.3,2.32557]
[1742628230333,2.41942,1987.4,1987.3,1.3188]
[1742628231134,2.41942,1987.4,1987.3,2.32557]
[1742628231835,2.41942,1987.4,1987.3,1.3188]
[1742628249151,1.00677,1987.3,1987.2,0.6702]
[1742628249446,10.82254,1987.3,1986.7,2.51769]
[1742628249652,4.21471,1987.1,1987.0,1.00691]
[1742628249945,4.21471,1987.1,1987.0,1.00692]
[1742628250243,4.85141,1987.1,1987.0,1.00692]
[1742628250440,6.14061,1987.1,1987.0,1.00692]
[1742628251652,4.497,1987.1,1987.0,1.65672]
[1742628251848,1.00687,1987.1,1987.0,1.65672]
[1742628252149,1.32773882,1987.2,1987.1,1.00687]
[1742628252351,0.00753882,1987.2,1987.1,3.01617]
[1742628252749,1.01435882,1987.2,1987.1,3.01617]
[1742628253744,2.33455882,1987.2,1987.1,3.01617]
[1742628254042,2.33455882,1987.2,1987.1,2.0093]
[1742628254442,2.33455882,1987.2,1987.1,1.3444]
[1742628254643,2.33455882,1987.2,1987.1,2.35127]
[1742628254844,2.33455882,1987.2,1987.1,1.3444]
[1742628255045,2.33455882,1987.2,1987.1,2.35127]
[1742628261562,5.54235882,1987.2,1987.1,2.35127]
[1742628262459,5.54235882,1987.2,1987.1,1.3444]
[1742628263554,5.54235882,1987.2,1987.1,2.35127]
[1742628266064,5.54235882,1987.2,1987.1,1.3444]
[1742628266569,8.70335882,1987.2,1987.1,1.3444]
[1742628268773,9.62380014,1987.2,1987.1,1.3444]
[1742628269160,13.41559014,1987.2,1987.1,1.3444]
[1742628271071,12.49514882,1987.2,1987.1,1.3444]
[1742628273160,12.49514882,1987.2,1987.1,2.35127]
[1742628274561,9.33414882,1987.2,1987.1,2.35127]
[1742628274764,8.27952882,1987.2,1987.1,2.35127]
[1742628274963,5.49455882,1987.2,1987.1,2.35127]
[1742628281267,2.33455882,1987.2,1987.1,2.35127]
[1742628281468,1.32773882,1987.2,1987.1,2.35127]
[1742628281873,2.33455882,1987.2,1987.1,2.35127]
[1742628283866,2.33455882,1987.2,1987.1,1.3444]
[1742628285183,2.33455882,1987.2,1987.1,2.35127]
[1742628286278,5.54235882,1987.2,1987.1,2.35127]
[1742628287064,2.33455882,1987.2,1987.1,2.35127]
[1742628287270,5.54235882,1987.2,1987.1,2.35127]
[1742628288067,5.54235882,1987.2,1987.1,1.3444]
[1742628288566,5.54235882,1987.2,1987.1,2.35127]
[1742628291175,5.54235882,1987.2,1987.1,1.3444]
[1742628292181,5.54235882,1987.2,1987.1,2.35127]
[1742628293275,5.54235882,1987.2,1987.1,1.3444]
[1742628293675,5.54235882,1987.2,1987.1,2.35127]
[1742628295176,5.54235882,1987.2,1987.1,1.3444]
[1742628301187,5.54235882,1987.2,1987.1,2.35127]
[1742628301987,2.33455882,1987.2,1987.1,2.35127]
[1742628304387,1.32773882,1987.2,1987.1,1.3444]
[1742628304687,1.32773882,1987.2,1987.1,2.35127]
[1742628305582,1.31803882,1987.2,1987.1,2.35127]
[1742628308479,2.32485882,1987.2,1987.1,2.35127]
[1742628309788,1.31803882,1987.2,1987.1,2.35127]
[1742628309978,2.32485882,1987.2,1987.1,2.35127]
[1742628313390,1.31803882,1987.2,1987.1,2.35127]
[1742628320093,2.32485882,1987.2,1987.1,2.35127]
[1742628321696,1.31803882,1987.2,1987.1,2.35127]
[1742628323290,2.32485882,1987.2,1987.1,2.35127]
[1742628323885,1.31803882,1987.2,1987.1,2.35127]
[1742628325686,2.32485882,1987.2,1987.1,2.35127]
[1742628325886,1.31803882,1987.2,1987.1,2.35127]
[1742628328485,0.00753882,1987.2,1987.1,2.35127]
[1742628329698,1.39693882,1987.2,1987.1,2.35127]
[1742628345192,2.40375882,1987.2,1987.1,2.35127]
[1742628345799,1.39693882,1987.2,1987.1,2.35127]
[1742628359609,2.40375882,1987.2,1987.1,1.00687]
[1742628361908,1.39693882,1987.2,1987.1,1.00687]
[1742628362115,2.40375882,1987.2,1987.1,1.00687]
[1742628362413,1.39693882,1987.2,1987.1,1.00687]
[1742628362713,2.40375882,1987.2,1987.1,1.00687]
[1742628363515,2.40375882,1987.2,1987.1,2.28977]
[1742628365307,1.39693882,1987.2,1987.1,2.28977]
[1742628368716,1.39693882,1987.2,1987.1,2.95907]
[1742628418470,1.39693882,1987.2,1987.1,6.11507]
[1742628418471,0.00753882,1987.2,1987.1,6.11507]
[1742628418773,3.79179,1987.5,1987.4,1.00672]
[1742628419365,3.79179,1987.5,1987.4,2.38042]
[1742628419863,4.61433882,1987.6,1987.5,1.00667]
[1742628420171,4.61433882,1987.6,1987.5,3.02027]
[1742628427263,5.29113882,1987.6,1987.5,3.02027]
[1742628429468,2.08333882,1987.6,1987.5,3.02027]
[1742628433881,2.08333882,1987.6,1987.5,2.38037]
[1742628441290,3.08995882,1987.6,1987.5,2.38037]
[1742628441683,3.08995882,1987.6,1987.5,1.00667]
[1742628444483,1.00667,1987.5,1987.4,1.00669]
[1742628444684,6.30247,1987.5,1987.4,1.00669]
[1742628445292,1.00672,1987.4,1987.3,1.40213882]
[1742628445593,3.08392,1987.4,1987.3,0.00753882]
[1742628445782,6.87571,1987.4,1987.3,0.00753882]
[1742628445986,7.66024937,1987.4,1987.3,0.00753882]
[1742628446693,8.57929969,1987.4,1987.3,0.00753882]
[1742628449384,7.79476032,1987.4,1987.3,0.00753882]
[1742628451185,1.0069,1987.1,1986.9,1.00693]
[1742628451492,4.2147,1987.1,1987.0,1.2724]
[1742628456901,1.00702,1986.8,1986.7,4.4541]
[1742628457298,4.21481,1986.9,1986.7,2.30512]
[1742628457499,1.00702,1986.8,1986.7,1.2981]
[1742628457700,3.2078,1986.9,1986.7,1.2981]
[1742628457701,3.2078,1986.9,1986.8,1.00702]
[1742628458194,3.2078,1986.9,1986.8,2.38312]
[1742628458603,4.21481,1986.9,1986.8,1.3761]
[1742628460803,4.21481,1986.9,1986.8,2.38312]
[1742628463198,4.21481,1986.9,1986.8,1.3761]
[1742628463507,4.21481,1986.9,1986.8,2.38312]
[1742628464103,3.2078,1986.9,1986.7,1.00705]
[1742628464307,4.21477,1986.9,1986.8,1.3287]
[1742628466205,4.21477,1986.9,1986.8,2.33572]
[1742628466404,4.21477,1986.9,1986.8,1.3287]
[1742628467208,4.21477,1986.9,1986.8,2.33572]
[1742628467604,4.21477,1986.9,1986.8,1.3287]
[1742628469501,4.91057,1986.9,1986.8,1.3287]
[1742628470102,8.06657,1986.9,1986.8,1.3287]
[1742628470703,9.41107,1986.9,1986.8,1.3287]
[1742628471305,9.41107,1986.9,1986.8,2.33572]
[1742628472306,9.41107,1986.9,1986.8,1.3287]
[1742628474813,9.41107,1986.9,1986.8,2.33572]
[1742628476005,6.20327,1986.9,1986.8,2.33572]
[1742628476205,9.41107,1986.9,1986.8,2.33572]
[1742628479717,9.41107,1986.9,1986.8,1.3287]
[1742628480411,9.41107,1986.9,1986.8,2.33572]
[1742628481118,9.41107,1986.9,1986.8,1.3287]
[1742628481417,9.41107,1986.9,1986.8,2.33572]
[1742628482422,6.20327,1986.9,1986.8,2.33572]
[1742628482621,9.41107,1986.9,1986.8,2.33572]
[1742628482924,8.71527,1986.9,1986.8,2.33572]
[1742628484423,3.2078,1986.9,1986.8,2.33572]
[1742628485618,5.54237,1986.9,1986.8,2.33572]
[1742628486623,4.5354,1986.9,1986.8,2.33572]
[1742628487628,5.54237,1986.9,1986.8,2.33572]
[1742628488626,5.54237,1986.9,1986.8,1.3287]
[1742628489221,6.32716981,1986.9,1986.8,1.3287]
[1742628489419,5.54237,1986.9,1986.8,1.3287]
[1742628489620,6.46153994,1986.9,1986.8,1.3287]
[1742628489829,7.24640883,1986.9,1986.8,1.3287]
[1742628490529,6.46153994,1986.9,1986.8,1.3287]
[1742628490722,7.24639488,1986.9,1986.8,1.3287]
[1742628490925,6.46153994,1986.9,1986.8,1.3287]
[1742628491625,7.24642641,1986.9,1986.8,1.3287]
[1742628496522,4.03862641,1986.9,1986.8,1.3287]
[1742628496722,6.46153994,1986.9,1986.8,1.3287]
[1742628496925,7.24642641,1986.9,1986.8,1.3287]
[1742628498231,1.00707,1986.7,1986.6,0.6485]
[1742628498429,1.00707,1986.7,1986.6,1.65562]
[1742628499535,1.3731,1986.7,1986.6,3.02232]
[1742628501433,2.38017,1986.7,1986.6,3.02232]
[1742628504727,2.38017,1986.7,1986.6,2.37382]
[1742628505333,2.38017,1986.7,1986.6,3.06252]
[1742628508438,1.3731,1986.7,1986.6,3.06252]
[1742628508633,2.38017,1986.7,1986.6,3.06252]
[1742628510736,1.3731,1986.7,1986.6,3.06252]
[1742628512248,2.38017,1986.7,1986.6,3.06252]
[1742628519242,2.38017,1986.7,1986.6,1.3667]
[1742628520146,2.38017,1986.7,1986.6,2.37382]
[1742628522752,2.38017,1986.7,1986.6,1.3667]
[1742628524244,5.58797,1986.7,1986.6,1.3667]
[1742628526455,5.58797,1986.7,1986.6,2.37382]
[1742628527249,5.58797,1986.7,1986.6,1.3667]
[1742628527454,5.58797,1986.7,1986.6,3.07982]
[1742628529154,2.38017,1986.7,1986.6,3.07982]
[1742628529357,5.58797,1986.7,1986.6,3.07982]
[1742628529552,5.58797,1986.7,1986.6,2.0727]
[1742628530357,4.5809,1986.7,1986.6,3.07982]
[1742628531956,5.58797,1986.7,1986.6,2.37382]
[1742628532849,4.5809,1986.7,1986.6,2.37382]
[1742628533056,2.38017,1986.7,1986.6,2.37382]
[1742628533955,2.38075,1986.8,1986.7,1.00707]
[1742628534257,3.67685,1986.8,1986.7,3.05637]
[1742628534850,2.6698,1986.8,1986.7,3.05637]
[1742628535051,3.67682,1986.8,1986.7,3.05637]
[1742628536749,2.6698,1986.8,1986.7,3.05637]
[1742628540657,3.67682,1986.8,1986.7,3.05637]
[1742628544065,3.67682,1986.8,1986.7,2.37117]
[1742628547765,6.88462,1986.8,1986.7,2.37117]
[1742628548265,5.8776,1986.8,1986.7,2.37117]
[1742628549966,6.88462,1986.8,1986.7,2.37117]
[1742628551171,3.67682,1986.8,1986.7,2.37117]
[1742628552466,2.6698,1986.8,1986.7,2.37117]
[1742628555864,1.2961,1986.8,1986.7,2.37117]
[1742628556970,5.08859,1987.0,1986.9,1.00697]
[1742628557269,3.79179,1987.0,1986.9,1.00697]
[1742628557775,3.79179,1987.0,1986.9,5.48277]
[1742628560775,5.15159,1987.0,1986.9,5.48277]
[1742628562570,1.3598,1987.0,1986.9,5.48277]
[1742628576978,2.36672,1987.0,1986.9,5.48277]
[1742628578491,1.3598,1987.0,1986.9,5.48277]
[1742628578790,2.36672,1987.0,1986.9,5.48277]
[1742628578992,1.3598,1987.0,1986.9,5.48277]
[1742628579490,2.36672,1987.0,1986.9,5.48277]
[1742628579692,1.3598,1987.0,1986.9,5.48277]
[1742628581192,2.36672,1987.0,1986.9,5.48277]
[1742628582078,1.3598,1987.0,1986.9,5.48277]
[1742628583280,2.0108,1987.0,1986.9,5.48277]
[1742628583894,3.01772,1987.0,1986.9,5.48277]
[1742628584189,2.0108,1987.0,1986.9,5.48277]
[1742628584591,3.01772,1987.0,1986.9,1.00697]
[1742628584781,2.0108,1987.0,1986.9,1.00697]
[1742628584984,3.01772,1987.0,1986.9,1.00697]
[1742628585180,2.0108,1987.0,1986.9,2.28397]
[1742628586995,3.01772,1987.0,1986.9,2.28397]
[1742628587193,1.00704,1986.8,1986.7,3.155]
[1742628587495,1.00704,1986.8,1986.7,4.16204]
[1742628588691,2.41394,1986.8,1986.7,5.46064]
[1742628589889,1.4069,1986.8,1986.7,5.46064]
[1742628590093,2.41392,1986.8,1986.7,5.46064]
[1742628591491,2.41392,1986.8,1986.7,2.30564]
[1742628593794,1.4069,1986.8,1986.7,2.30564]
[1742628594703,2.41392,1986.8,1986.7,2.30564]
[1742628597600,1.4069,1986.8,1986.7,2.30564]
[1742628598499,1.4069,1986.8,1986.7,2.99304]
[1742628599701,0.00753882,1987.6,1986.7,10.8488]
[1742628599902,0.00753882,1987.6,1987.5,1.00667]
[1742628600103,1.01415882,1987.6,1987.5,1.00667]
[1742628600706,0.00753882,1987.6,1987.5,1.00667]
[1742628601102,1.39053882,1987.6,1987.5,1.00667]
[1742628601296,1.39053882,1987.6,1987.5,2.41517]
[1742628601704,0.00753882,1987.6,1987.5,6.30947]
[1742628602693,1.30253882,1987.6,1987.5,6.30947]
[1742628605507,1.30253882,1987.6,1987.5,5.62297]
[1742628609403,1.30253882,1987.6,1987.5,2.41517]
[1742628609704,1.30253882,1987.6,1987.5,5.62297]
[1742628610414,0.00753882,1987.6,1987.5,5.62297]
[1742628615920,1.3389,1987.9,1987.8,1.00651]
[1742628616618,1.3389,1987.9,1987.8,2.36171]
[1742628617317,1.32493882,1988.0,1987.9,1.00646]
[1742628617620,0.00753882,1988.0,1987.9,5.60266]
[1742628642733,0.00753882,1988.0,1987.9,8.10266]
[1742628643037,8.82e-06,1988.0,1987.9,8.10266]
[1742628647737,8.82e-06,1988.0,1987.9,13.97466]
[1742628649737,8.82e-06,1988.0,1987.9,11.47466]
[1742628649939,8.82e-06,1988.0,1987.9,13.97466]
[1742628657540,8.82e-06,1988.0,1987.9,10.76686]
[1742628657844,8.82e-06,1988.0,1987.9,13.97466]
[1742628661845,8.82e-06,1988.0,1987.9,11.47466]
[1742628665046,1.28450882,1988.0,1987.9,11.47466]
[1742628665247,0.6442,1988.1,1988.0,1.00641]
[1742628665548,0.6442,1988.1,1988.0,5.44271]
[1742628668144,0.2174,1988.1,1988.0,5.44271]
[1742628668546,1.3834,1988.1,1988.0,5.44271]
[1742628668746,1.3834,1988.1,1988.0,6.10971]
[1742628669149,1.3834,1988.1,1988.0,9.31751]
[1742628670945,0.66593882,1988.2,1988.1,1.00636]
[1742628671146,0.66593882,1988.2,1988.1,5.56616]
[1742628674053,0.6575,1988.5,1988.4,1.00621]
[1742628674252,0.6575,1988.5,1988.4,7.36801]
[1742628677051,0.6575,1988.5,1988.4,8.67901]
[1742628678550,0.62842882,1988.6,1988.5,1.00616]
[1742628678753,0.62842882,1988.6,1988.5,2.36556]
[1742628693266,0.62842882,1988.6,1988.5,5.57336]
[1742628695160,0.62842882,1988.6,1988.5,2.36556]
[1742628695460,0.62842882,1988.6,1988.5,5.57336]
[1742628696868,0.00753882,1988.6,1988.5,5.57336]
[1742628700659,0.00753882,1988.6,1988.5,11.44536]
[1742628700855,3.152,1989.5,1989.1,1.00586]
[1742628700856,1.3365,1989.2,1989.1,1.00586]
[1742628701063,1.3365,1989.2,1989.1,7.36866]
[1742628704066,0.6873,1989.2,1989.1,8.76966]
[1742628715869,0.6873,1989.2,1989.1,9.46186]
[1742628722280,0.00753882,1989.3,1989.2,1.00581]
[1742628722578,0.00753882,1989.3,1989.2,2.27891]
[1742628730488,0.00753882,1989.3,1989.2,5.48671]
[1742628731889,0.69473882,1989.3,1989.2,5.48671]
[1742628732290,0.00753882,1989.3,1989.2,5.48671]
[1742628734988,0.91978833,1989.7,1989.6,1.0056]
[1742628735184,0.91978833,1989.7,1989.5,4.15762]
[1742628735185,1.00556,1989.7,1989.5,4.15762]
[1742628735385,11.21352156,1989.8,1989.6,0.6564]
[1742628735695,11.21352156,1989.8,1989.6,1.662]
[1742628736188,8.00572156,1989.8,1989.6,1.662]
[1742628736885,8.01272156,1989.8,1989.6,1.662]
[1742628737394,0.70673882,1989.9,1989.8,1.0055]
[1742628737693,1.71918882,1989.9,1989.8,1.0055]
[1742628738290,0.71373882,1989.9,1989.8,2.3073]
[1742628739593,0.70673882,1989.9,1989.8,2.3073]
[1742628739793,0.00753882,1989.9,1989.8,2.991]
[1742628746787,1.01298882,1989.9,1989.8,2.991]
[1742628747000,0.00753882,1989.9,1989.8,2.991]
[1742628747191,0.00753882,1989.9,1989.8,2.3073]
[1742628747700,0.00753882,1989.9,1989.8,2.9745]
[1742628770125,50.23005,1991.6,1990.1,2.51334]
[1742628770126,3.79179,1990.6,1990.1,2.51334]
[1742628770322,3.79179,1990.6,1990.4,3.2078]
[1742628770323,1.00515,1990.5,1990.4,3.2078]
[1742628770521,1.00515,1990.5,1990.4,4.4819]
[1742628770721,2.33285,1990.5,1990.4,4.4819]
[1742628772527,2.33285,1990.5,1990.4,1.3209]
[1742628773321,1.3277,1990.5,1990.4,2.3261]
[1742628773522,1.322,1990.5,1990.4,2.3261]
[1742628773722,2.32715,1990.5,1990.4,2.3261]
[1742628773928,2.33285,1990.5,1990.4,2.3261]
[1742628774322,1.3277,1990.5,1990.4,2.3261]
[1742628774729,2.33285,1990.5,1990.4,2.3261]
[1742628775127,2.33285,1990.5,1990.4,1.3209]
[1742628775430,1.3277,1990.5,1990.4,2.3261]
[1742628776530,0.6588,1990.5,1990.4,2.3261]
[1742628777630,1.66395,1990.5,1990.4,2.3261]
[1742628777831,0.6588,1990.5,1990.4,2.3261]
[1742628778627,0.6588,1990.5,1990.4,5.4861]
[1742628778828,1.66915,1990.5,1990.4,5.4861]
[1742628779434,0.664,1990.5,1990.4,5.4861]
[1742628779936,1.66915,1990.5,1990.4,4.4809]
[1742628781227,1.66915,1990.5,1990.4,1.3209]
[1742628781418,1.0052,1990.4,1990.3,0.00753882]
[1742628781619,1.6574,1990.4,1990.3,0.00753882]
[1742628781824,4.1574,1990.4,1990.3,0.00753882]
[1742628783739,7.3184,1990.4,1990.3,0.00753882]
[1742628784126,11.11019,1990.4,1990.3,0.00753882]
[1742628784329,11.8933254,1990.4,1990.3,0.00753882]
[1742628784636,12.81093737,1990.4,1990.3,0.00753882]
[1742628787637,12.81079462,1990.4,1990.3,0.00753882]
[1742628788231,12.02780197,1990.4,1990.3,0.00753882]
[1742628789334,11.11019,1990.4,1990.3,0.00753882]
[1742628790539,11.11019,1990.4,1990.3,1.38873882]
[1742628790738,12.02764609,1990.4,1990.3,1.38873882]
[1742628791441,11.11019,1990.4,1990.3,1.38873882]
[1742628792034,12.02765739,1990.4,1990.3,1.38873882]
[1742628792839,5.71445739,1990.4,1990.3,1.38873882]
[1742628793443,4.79699,1990.4,1990.3,1.38873882]
[1742628793643,4.79699,1990.4,1990.3,2.39398882]
[1742628794033,3.2078,1990.5,1990.4,1.0052]